[Event "Live Chess"]
[Site "Chess.com"]
[Date "2023.05.21"]
[Round "-"]
[White "diana21strabt"]
[Black "friarnator"]
[Result "0-1"]
[WhiteElo "1720"]
[BlackElo "1997"]
[TimeControl "300"]
[EndTime "0:49:39 PDT"]
[Termination "friarnator won by resignation"]

1. e4 {[%clk 0:04:55.4]} 1... Nf6 {[%clk 0:04:58.8]} 2. e5 {[%clk 0:04:54.3]}
2... Nd5 {[%clk 0:04:58.1]} 3. d4 {[%clk 0:04:52.7]} 3... d6 {[%clk 0:04:57.4]}
4. Nf3 {[%clk 0:04:51.7]} 4... Bg4 {[%clk 0:04:56.1]} 5. Be2 {[%clk 0:04:49.5]}
5... e6 {[%clk 0:04:55.5]} 6. O-O {[%clk 0:04:42.3]} 6... Be7 {[%clk 0:04:54.2]}
7. c4 {[%clk 0:04:31.8]} 7... Nb6 {[%clk 0:04:52.7]} 8. exd6 {[%clk 0:04:31.4]}
8... cxd6 {[%clk 0:04:52.6]} 9. Nc3 {[%clk 0:04:28.5]} 9... O-O {[%clk
0:04:51.5]} 10. Be3 {[%clk 0:04:19.5]} 10... Nc6 {[%clk 0:04:50.5]} 11. a4
{[%clk 0:04:15.8]} 11... Bxf3 {[%clk 0:04:49.3]} 12. Bxf3 {[%clk 0:04:13.4]}
12... Nxc4 {[%clk 0:04:48.5]} 13. Bxc6 {[%clk 0:04:11.9]} 13... bxc6 {[%clk
0:04:47.5]} 14. b4 {[%clk 0:04:10.1]} 14... d5 {[%clk 0:04:43.7]} 15. b5 {[%clk
0:04:07.4]} 15... cxb5 {[%clk 0:04:42]} 16. axb5 {[%clk 0:04:05.6]} 16... Qc7
{[%clk 0:04:28.7]} 17. Rc1 {[%clk 0:04:00.4]} 17... Rfc8 {[%clk 0:04:24.4]} 18.
Qg4 {[%clk 0:03:47.7]} 18... Nxe3 {[%clk 0:04:19]} 19. fxe3 {[%clk 0:03:42.1]}
19... Qa5 {[%clk 0:04:18]} 20. Ne2 {[%clk 0:03:34.9]} 20... Qxb5 {[%clk
0:04:15.1]} 21. Ng3 {[%clk 0:03:30.3]} 21... Rxc1 {[%clk 0:04:03.7]} 22. Rxc1
{[%clk 0:03:22.2]} 22... Qd3 {[%clk 0:04:02.7]} 23. Qf4 {[%clk 0:03:09.3]} 23...
Bd6 {[%clk 0:03:53.8]} 24. Qf3 {[%clk 0:02:54.5]} 24... Bxg3 {[%clk 0:03:50.9]}
25. Qxg3 {[%clk 0:02:31.4]} 25... a5 {[%clk 0:03:49.7]} 26. Rf1 {[%clk
0:02:20.8]} 26... a4 {[%clk 0:03:42.3]} 27. Qf2 {[%clk 0:02:16.9]} 27... Rf8
{[%clk 0:03:40.7]} 28. Ra1 {[%clk 0:02:12.5]} 28... a3 {[%clk 0:03:39.5]} 29.
Ra2 {[%clk 0:02:00.6]} 29... Qb1+ {[%clk 0:03:31.9]} 0-1

[Event "Live Chess"]
[Site "Chess.com"]
[Date "2023.05.21"]
[Round "-"]
[White "Tushinskiy"]
[Black "Singapourfeuj"]
[Result "1-0"]
[WhiteElo "2193"]
[BlackElo "2186"]
[TimeControl "300"]
[EndTime "0:49:39 PDT"]
[Termination "Tushinskiy won by resignation"]

1. d4 {[%clk 0:04:51.7]} 1... Nf6 {[%clk 0:04:58.8]} 2. c3 {[%clk 0:04:51.6]}
2... g6 {[%clk 0:04:56.5]} 3. Nf3 {[%clk 0:04:51.5]} 3... Bg7 {[%clk 0:04:55.6]}
4. Bf4 {[%clk 0:04:50.8]} 4... O-O {[%clk 0:04:54.8]} 5. Bg3 {[%clk 0:04:50.7]}
5... d5 {[%clk 0:04:53.7]} 6. Nbd2 {[%clk 0:04:50.6]} 6... Nbd7 {[%clk
0:04:52.9]} 7. e3 {[%clk 0:04:50.1]} 7... c5 {[%clk 0:04:52.1]} 8. Bd3 {[%clk
0:04:49.4]} 8... b6 {[%clk 0:04:50.7]} 9. O-O {[%clk 0:04:48.4]} 9... Bb7 {[%clk
0:04:50.1]} 10. Qe2 {[%clk 0:04:47.8]} 10... Re8 {[%clk 0:04:47.7]} 11. Rad1
{[%clk 0:04:47]} 11... Nh5 {[%clk 0:04:46]} 12. e4 {[%clk 0:04:43.7]} 12... Nxg3
{[%clk 0:04:44.6]} 13. fxg3 {[%clk 0:04:41.8]} 13... e5 {[%clk 0:04:43.7]} 14.
dxe5 {[%clk 0:04:40.6]} 14... Nxe5 {[%clk 0:04:42.7]} 15. Nxe5 {[%clk
0:04:39.5]} 15... Rxe5 {[%clk 0:04:41.7]} 16. Qf2 {[%clk 0:04:37.9]} 16... Re7
{[%clk 0:04:39]} 17. exd5 {[%clk 0:04:34.6]} 17... Bxd5 {[%clk 0:04:38]} 18. Nf3
{[%clk 0:04:31.6]} 18... Bxf3 {[%clk 0:04:25.9]} 19. Qxf3 {[%clk 0:04:30.2]}
19... Rc8 {[%clk 0:04:23.3]} 20. Bxg6 {[%clk 0:04:28.3]} 20... hxg6 {[%clk
0:04:20.1]} 21. Rxd8+ {[%clk 0:04:26.6]} 21... Rxd8 {[%clk 0:04:19.5]} 22. h3
{[%clk 0:04:24.1]} 22... Red7 {[%clk 0:04:18]} 23. Kh2 {[%clk 0:04:22.3]} 23...
Be5 {[%clk 0:04:11]} 24. Rf2 {[%clk 0:04:20.2]} 24... f6 {[%clk 0:04:07.5]} 25.
Qg4 {[%clk 0:04:16]} 25... Kg7 {[%clk 0:04:05.4]} 26. h4 {[%clk 0:04:11.2]}
26... Rd3 {[%clk 0:04:03.3]} 27. Rf3 {[%clk 0:04:09.8]} 27... Rxf3 {[%clk
0:04:02.2]} 28. Qxf3 {[%clk 0:04:07.9]} 28... Rd7 {[%clk 0:04:00.5]} 29. a3
{[%clk 0:04:05.2]} 29... f5 {[%clk 0:03:46.3]} 30. h5 {[%clk 0:04:03.5]} 30...
Kf6 {[%clk 0:03:44.5]} 31. Kh3 {[%clk 0:03:52.4]} 31... Rh7 {[%clk 0:03:30.7]}
32. Qc6+ {[%clk 0:03:49.6]} 32... Ke7 {[%clk 0:03:26.5]} 33. Qb7+ {[%clk
0:03:45.1]} 1-0

[Event "Live Chess"]
[Site "Chess.com"]
[Date "2023.05.21"]
[Round "-"]
[White "blunderabit"]
[Black "JoshMcK"]
[Result "1-0"]
[WhiteElo "1817"]
[BlackElo "1538"]
[TimeControl "300"]
[EndTime "0:50:05 PDT"]
[Termination "blunderabit won by resignation"]

1. e4 {[%clk 0:04:58.2]} 1... c6 {[%clk 0:04:57.6]} 2. Nf3 {[%clk 0:04:55.2]}
2... d5 {[%clk 0:04:55.9]} 3. d3 {[%clk 0:04:54.8]} 3... Bg4 {[%clk 0:04:49.4]}
4. h3 {[%clk 0:04:49.7]} 4... Bxf3 {[%clk 0:04:48.5]} 5. Qxf3 {[%clk 0:04:47.7]}
5... e6 {[%clk 0:04:46.8]} 6. g4 {[%clk 0:04:42.9]} 6... Bd6 {[%clk 0:04:40.3]}
7. Bg2 {[%clk 0:04:39.9]} 7... Ne7 {[%clk 0:04:36.4]} 8. Bd2 {[%clk 0:04:25.5]}
8... O-O {[%clk 0:04:34.6]} 9. Nc3 {[%clk 0:04:20.8]} 9... Nd7 {[%clk
0:04:19.9]} 10. O-O-O {[%clk 0:04:15]} 10... b5 {[%clk 0:04:16.5]} 11. h4 {[%clk
0:04:08.8]} 11... a5 {[%clk 0:04:12.9]} 12. g5 {[%clk 0:03:54.8]} 12... b4
{[%clk 0:04:07.4]} 13. Na4 {[%clk 0:03:47.3]} 13... Nc5 {[%clk 0:03:56]} 14.
Nxc5 {[%clk 0:03:42]} 14... Bxc5 {[%clk 0:03:55.9]} 15. h5 {[%clk 0:03:33.6]}
15... a4 {[%clk 0:03:51]} 16. h6 {[%clk 0:03:13.8]} 16... g6 {[%clk 0:03:48.3]}
17. Qf6 {[%clk 0:03:10.5]} 1-0

[Event "Live Chess"]
[Site "Chess.com"]
[Date "2023.05.21"]
[Round "-"]
[White "ExIsambard"]
[Black "hturner40"]
[Result "1-0"]
[WhiteElo "1926"]
[BlackElo "1788"]
[TimeControl "300"]
[EndTime "0:50:15 PDT"]
[Termination "ExIsambard won on time"]

1. d4 {[%clk 0:04:53.3]} 1... Nf6 {[%clk 0:04:57.7]} 2. Nf3 {[%clk 0:04:52]}
2... g6 {[%clk 0:04:55.8]} 3. Bg5 {[%clk 0:04:51.9]} 3... c5 {[%clk 0:04:51.8]}
4. c3 {[%clk 0:04:51]} 4... Qb6 {[%clk 0:04:50.1]} 5. b3 {[%clk 0:04:50]} 5...
Bg7 {[%clk 0:04:43.8]} 6. e3 {[%clk 0:04:49.2]} 6... d5 {[%clk 0:04:30.7]} 7.
Bd3 {[%clk 0:04:48]} 7... Nc6 {[%clk 0:04:29.2]} 8. Nbd2 {[%clk 0:04:46.3]} 8...
O-O {[%clk 0:04:27.6]} 9. h4 {[%clk 0:04:45]} 9... Bg4 {[%clk 0:04:24.8]} 10.
Be2 {[%clk 0:04:41.2]} 10... cxd4 {[%clk 0:03:52.7]} 11. exd4 {[%clk 0:04:37.5]}
11... Rfe8 {[%clk 0:03:41.7]} 12. O-O {[%clk 0:04:34.7]} 12... Ne4 {[%clk
0:03:31.8]} 13. Nxe4 {[%clk 0:04:30.1]} 13... dxe4 {[%clk 0:03:29.4]} 14. Nh2
{[%clk 0:04:29.6]} 14... Bxe2 {[%clk 0:03:27]} 15. Qxe2 {[%clk 0:04:29.5]} 15...
f5 {[%clk 0:03:04.8]} 16. h5 {[%clk 0:04:24.5]} 16... h6 {[%clk 0:02:50.4]} 17.
hxg6 {[%clk 0:04:19.7]} 17... hxg5 {[%clk 0:02:48.2]} 18. Qh5 {[%clk 0:04:19.1]}
18... Qc7 {[%clk 0:02:00.5]} 19. Qxg5 {[%clk 0:04:06.7]} 19... e6 {[%clk
0:01:58.9]} 20. Rfe1 {[%clk 0:04:04.5]} 20... Qe7 {[%clk 0:01:56.9]} 21. Qh5
{[%clk 0:04:03.3]} 21... Qf6 {[%clk 0:01:51]} 22. Re3 {[%clk 0:04:00.5]} 22...
Ne7 {[%clk 0:01:46.3]} 23. Qh7+ {[%clk 0:03:55.5]} 23... Kf8 {[%clk 0:01:44.8]}
24. Rg3 {[%clk 0:03:54.2]} 24... Ng8 {[%clk 0:01:39.7]} 25. f3 {[%clk
0:03:49.1]} 25... e3 {[%clk 0:01:33.1]} 26. f4 {[%clk 0:03:36.9]} 26... Re7
{[%clk 0:01:16.8]} 27. Nf3 {[%clk 0:03:33.5]} 27... Bh6 {[%clk 0:01:14.7]} 28.
Ne5 {[%clk 0:03:19]} 28... Bxf4 {[%clk 0:00:56]} 29. Nf7 {[%clk 0:00:46.6]}
29... Bxg3 {[%clk 0:00:38.9]} 30. Rf1 {[%clk 0:00:39.1]} 30... e2 {[%clk
0:00:29.5]} 31. Rc1 {[%clk 0:00:35.9]} 31... e1=Q+ {[%clk 0:00:20.8]} 32. Rxe1
{[%clk 0:00:35.2]} 32... Bxe1 {[%clk 0:00:19.7]} 33. Qh5 {[%clk 0:00:28.5]}
33... Rxf7 {[%clk 0:00:15.5]} 34. gxf7 {[%clk 0:00:26.9]} 34... Qxf7 {[%clk
0:00:14.1]} 35. Qe2 {[%clk 0:00:26.7]} 35... Bh4 {[%clk 0:00:11.6]} 36. c4
{[%clk 0:00:24.9]} 36... Be7 {[%clk 0:00:09.9]} 37. Qf3 {[%clk 0:00:23]} 37...
Bd6 {[%clk 0:00:06.2]} 38. c5 {[%clk 0:00:21.2]} 38... Bc7 {[%clk 0:00:01.5]}
39. Qxb7 {[%clk 0:00:19.1]} 39... Bh2+ {[%clk 0:00:00.2]} 40. Kxh2 {[%clk
0:00:17.1]} 1-0

[Event "Live Chess"]
[Site "Chess.com"]
[Date "2023.05.21"]
[Round "-"]
[White "Hacker_2009"]
[Black "Denz14"]
[Result "1-0"]
[WhiteElo "1908"]
[BlackElo "1022"]
[TimeControl "300"]
[EndTime "0:50:21 PDT"]
[Termination "Hacker_2009 won by resignation"]

1. d4 {[%clk 0:04:58]} 1... Nf6 {[%clk 0:04:56.6]} 2. Nf3 {[%clk 0:04:56.7]}
2... d5 {[%clk 0:04:54.9]} 3. e3 {[%clk 0:04:55.4]} 3... Nc6 {[%clk 0:04:53.4]}
4. c4 {[%clk 0:04:53.4]} 4... e6 {[%clk 0:04:51.5]} 5. Nc3 {[%clk 0:04:51.3]}
5... Bb4 {[%clk 0:04:47.5]} 6. Bd2 {[%clk 0:04:49.8]} 6... Bxc3 {[%clk
0:04:44.4]} 7. Bxc3 {[%clk 0:04:48.8]} 7... O-O {[%clk 0:04:43.3]} 8. cxd5
{[%clk 0:04:47.1]} 8... exd5 {[%clk 0:04:41.7]} 9. Bd3 {[%clk 0:04:46.6]} 9...
Ne4 {[%clk 0:04:39.6]} 10. O-O {[%clk 0:04:45.6]} 10... Nxc3 {[%clk 0:04:37.9]}
11. bxc3 {[%clk 0:04:44.7]} 11... Bg4 {[%clk 0:04:35.1]} 12. Be2 {[%clk
0:04:43.1]} 12... Qf6 {[%clk 0:04:32.2]} 13. Rb1 {[%clk 0:04:40.9]} 13... b6
{[%clk 0:04:23.7]} 14. h3 {[%clk 0:04:38.9]} 14... Bh5 {[%clk 0:04:19.1]} 15.
Qb3 {[%clk 0:04:34.8]} 15... Bg6 {[%clk 0:04:14.2]} 16. Rbc1 {[%clk 0:04:30.9]}
16... Na5 {[%clk 0:04:11.2]} 17. Qxd5 {[%clk 0:04:28.7]} 17... Rfd8 {[%clk
0:03:58.3]} 18. Qb5 {[%clk 0:04:26.6]} 18... c6 {[%clk 0:03:49.4]} 19. Qb2
{[%clk 0:04:23.9]} 19... b5 {[%clk 0:03:47.1]} 20. c4 {[%clk 0:04:21.1]} 20...
Rab8 {[%clk 0:03:39.6]} 21. cxb5 {[%clk 0:04:17.6]} 21... cxb5 {[%clk
0:03:35.2]} 22. Qb4 {[%clk 0:04:16.6]} 22... Nc4 {[%clk 0:03:32.1]} 23. Bxc4
{[%clk 0:04:12.6]} 23... bxc4 {[%clk 0:03:29.3]} 24. Qxc4 {[%clk 0:04:11.6]}
24... h6 {[%clk 0:03:24.4]} 25. Ne5 {[%clk 0:04:09.2]} 25... Bh7 {[%clk
0:03:21.9]} 26. Qc7 {[%clk 0:04:05.6]} 26... Rf8 {[%clk 0:03:08.6]} 27. Nd7
{[%clk 0:04:02.7]} 27... Qe7 {[%clk 0:03:01.1]} 28. Nxb8 {[%clk 0:04:00]} 28...
Qxc7 {[%clk 0:02:59.4]} 29. Rxc7 {[%clk 0:03:58.1]} 29... Rxb8 {[%clk
0:02:59.3]} 30. Rfc1 {[%clk 0:03:56.8]} 30... Bf5 {[%clk 0:02:53.1]} 31. Rxa7
{[%clk 0:03:49.8]} 31... Rb1 {[%clk 0:02:49.2]} 32. Rxb1 {[%clk 0:03:47.6]}
32... Bxb1 {[%clk 0:02:48]} 33. a4 {[%clk 0:03:47.1]} 1-0

[Event "Live Chess"]
[Site "Chess.com"]
[Date "2023.05.21"]
[Round "-"]
[White "Tiltador"]
[Black "Salpingidis"]
[Result "0-1"]
[WhiteElo "761"]
[BlackElo "2220"]
[TimeControl "300"]
[EndTime "0:50:28 PDT"]
[Termination "Salpingidis won by checkmate"]

1. e4 {[%clk 0:04:57.2]} 1... e6 {[%clk 0:04:59.9]} 2. Nf3 {[%clk 0:04:55.8]}
2... d5 {[%clk 0:04:59.8]} 3. exd5 {[%clk 0:04:53.8]} 3... exd5 {[%clk
0:04:59.7]} 4. d3 {[%clk 0:04:52.2]} 4... Bd6 {[%clk 0:04:59.2]} 5. Be2 {[%clk
0:04:50.5]} 5... Nf6 {[%clk 0:04:58.6]} 6. O-O {[%clk 0:04:49.3]} 6... O-O
{[%clk 0:04:58.2]} 7. Bg5 {[%clk 0:04:46.9]} 7... Bf5 {[%clk 0:04:55.1]} 8. Bxf6
{[%clk 0:04:44.9]} 8... Qxf6 {[%clk 0:04:53.7]} 9. Nc3 {[%clk 0:04:42.9]} 9...
c6 {[%clk 0:04:52.3]} 10. a3 {[%clk 0:04:39.6]} 10... Nd7 {[%clk 0:04:51.1]} 11.
d4 {[%clk 0:04:28]} 11... Qh6 {[%clk 0:04:47.4]} 12. g3 {[%clk 0:04:25.1]} 12...
Nf6 {[%clk 0:04:43.3]} 13. Ne5 {[%clk 0:04:23.7]} 13... Ne4 {[%clk 0:04:35.9]}
14. Nxe4 {[%clk 0:04:16.8]} 14... Bxe4 {[%clk 0:04:35.8]} 15. Bf3 {[%clk
0:04:07.5]} 15... Bf5 {[%clk 0:04:20.8]} 16. Bg2 {[%clk 0:03:53]} 16... f6
{[%clk 0:04:18]} 17. Nd3 {[%clk 0:03:42.1]} 17... Rae8 {[%clk 0:04:17.3]} 18. f4
{[%clk 0:03:33.5]} 18... Qg6 {[%clk 0:04:14.2]} 19. Qd2 {[%clk 0:03:22.1]} 19...
Be4 {[%clk 0:04:00.9]} 20. Bxe4 {[%clk 0:03:17.3]} 20... dxe4 {[%clk 0:04:00.8]}
21. Nb4 {[%clk 0:03:09.1]} 21... a5 {[%clk 0:03:59.2]} 22. Na2 {[%clk
0:03:00.3]} 22... e3 {[%clk 0:03:55.4]} 23. Qe2 {[%clk 0:02:55.2]} 23... Qe4
{[%clk 0:03:47.5]} 24. c3 {[%clk 0:02:44.5]} 24... c5 {[%clk 0:03:41.4]} 25.
Rad1 {[%clk 0:02:30.5]} 25... cxd4 {[%clk 0:03:38.5]} 26. Rxd4 {[%clk
0:02:27.8]} 26... Qe6 {[%clk 0:03:38]} 27. Nc1 {[%clk 0:02:16.7]} 27... Bc5
{[%clk 0:03:34.7]} 28. Rd3 {[%clk 0:02:10.2]} 28... Rd8 {[%clk 0:03:24.5]} 29.
Rxd8 {[%clk 0:02:04.8]} 29... Rxd8 {[%clk 0:03:24.4]} 30. b4 {[%clk 0:01:59.6]}
30... Rd2 {[%clk 0:03:22.3]} 31. Qf3 {[%clk 0:01:52.2]} 31... e2+ {[%clk
0:03:16.8]} 32. Kh1 {[%clk 0:01:35.8]} 32... e1=Q {[%clk 0:03:08.5]} 33. Rxe1
{[%clk 0:01:10]} 33... Qxe1+ {[%clk 0:03:08.4]} 34. Qf1 {[%clk 0:01:04.9]} 34...
Qxf1# {[%clk 0:03:08.3]} 0-1

[Event "Live Chess"]
[Site "Chess.com"]
[Date "2023.05.21"]
[Round "-"]
[White "LiamClery2020"]
[Black "MaximKris"]
[Result "1-0"]
[WhiteElo "2020"]
[BlackElo "1820"]
[TimeControl "300"]
[EndTime "0:50:30 PDT"]
[Termination "LiamClery2020 won by checkmate"]

1. e4 {[%clk 0:04:59.1]} 1... e5 {[%clk 0:04:58.4]} 2. Nc3 {[%clk 0:04:58.1]}
2... Nc6 {[%clk 0:04:57]} 3. Bc4 {[%clk 0:04:54.3]} 3... Bc5 {[%clk 0:04:54.9]}
4. Qg4 {[%clk 0:04:52]} 4... g6 {[%clk 0:04:51]} 5. Qg3 {[%clk 0:04:50.4]} 5...
Nd4 {[%clk 0:04:48.3]} 6. Qxe5+ {[%clk 0:04:49.1]} 6... Qe7 {[%clk 0:04:42]} 7.
Qxh8 {[%clk 0:04:47.7]} 7... Nxc2+ {[%clk 0:04:41]} 8. Kd1 {[%clk 0:04:45.9]}
8... Nxa1 {[%clk 0:04:40.2]} 9. Qxg8+ {[%clk 0:04:45.1]} 9... Qf8 {[%clk
0:04:40.1]} 10. Bxf7+ {[%clk 0:04:42.1]} 10... Ke7 {[%clk 0:04:38.4]} 11. Nd5+
{[%clk 0:04:38.5]} 11... Kd8 {[%clk 0:04:35.4]} 12. d4 {[%clk 0:04:31.6]} 12...
Bd6 {[%clk 0:04:33.2]} 13. Bg5+ {[%clk 0:04:28.5]} 13... Be7 {[%clk 0:04:32.8]}
14. Qxf8# {[%clk 0:04:27.6]} 1-0

[Event "Live Chess"]
[Site "Chess.com"]
[Date "2023.05.21"]
[Round "-"]
[White "AttackingSnowLeopard"]
[Black "MarkLim1"]
[Result "1/2-1/2"]
[WhiteElo "2200"]
[BlackElo "1688"]
[TimeControl "300"]
[EndTime "0:50:58 PDT"]
[Termination "Game drawn by repetition"]

1. d4 {[%clk 0:04:58.1]} 1... Nf6 {[%clk 0:04:59]} 2. c4 {[%clk 0:04:57.7]} 2...
e6 {[%clk 0:04:58.4]} 3. Nf3 {[%clk 0:04:56.5]} 3... d5 {[%clk 0:04:58.3]} 4.
Nc3 {[%clk 0:04:54.7]} 4... c5 {[%clk 0:04:57.6]} 5. cxd5 {[%clk 0:04:53.6]}
5... Nxd5 {[%clk 0:04:57.5]} 6. e4 {[%clk 0:04:52.1]} 6... Nxc3 {[%clk
0:04:55.8]} 7. bxc3 {[%clk 0:04:52]} 7... cxd4 {[%clk 0:04:55.1]} 8. cxd4 {[%clk
0:04:51.9]} 8... Bb4+ {[%clk 0:04:54.7]} 9. Bd2 {[%clk 0:04:51.4]} 9... Bxd2+
{[%clk 0:04:54.3]} 10. Qxd2 {[%clk 0:04:51.3]} 10... O-O {[%clk 0:04:53.7]} 11.
Bc4 {[%clk 0:04:49.8]} 11... Nd7 {[%clk 0:04:52.6]} 12. O-O {[%clk 0:04:48.5]}
12... b6 {[%clk 0:04:51.9]} 13. d5 {[%clk 0:04:46.7]} 13... Nc5 {[%clk
0:04:49.6]} 14. Qe3 {[%clk 0:04:43.9]} 14... Re8 {[%clk 0:04:46.1]} 15. dxe6
{[%clk 0:04:40.5]} 15... Bxe6 {[%clk 0:04:43.5]} 16. Rfd1 {[%clk 0:04:38.5]}
16... Qc7 {[%clk 0:04:40.9]} 17. Bxe6 {[%clk 0:04:37.1]} 17... Rxe6 {[%clk
0:04:38.5]} 18. e5 {[%clk 0:04:34]} 18... Rae8 {[%clk 0:04:30.7]} 19. Rac1
{[%clk 0:04:29.8]} 19... Qb7 {[%clk 0:04:22.7]} 20. h3 {[%clk 0:04:25.4]} 20...
h6 {[%clk 0:04:10.8]} 21. Qf4 {[%clk 0:04:17]} 21... Qa6 {[%clk 0:03:53.1]} 22.
Rd6 {[%clk 0:04:03.3]} 22... Nd3 {[%clk 0:03:44.3]} 23. Qc4 {[%clk 0:03:38.9]}
23... Qxc4 {[%clk 0:03:34]} 24. Rxc4 {[%clk 0:03:37.1]} 24... Nxe5 {[%clk
0:03:33.1]} 25. Rxe6 {[%clk 0:03:33.5]} 25... Nxf3+ {[%clk 0:03:28.8]} 26. gxf3
{[%clk 0:03:31.6]} 26... Rxe6 {[%clk 0:03:27.4]} 27. Kg2 {[%clk 0:03:29.4]}
27... a5 {[%clk 0:03:21.9]} 28. f4 {[%clk 0:03:27.8]} 28... g6 {[%clk
0:03:20.4]} 29. Kf3 {[%clk 0:03:27.2]} 29... Kg7 {[%clk 0:03:19.4]} 30. a4
{[%clk 0:03:25.5]} 30... Kf6 {[%clk 0:03:17.7]} 31. Rd4 {[%clk 0:03:25.1]} 31...
Rc6 {[%clk 0:03:14.5]} 32. Ke4 {[%clk 0:03:20.8]} 32... Ke6 {[%clk 0:03:07.5]}
33. h4 {[%clk 0:03:14.7]} 33... Rd6 {[%clk 0:03:05.4]} 34. Rc4 {[%clk
0:03:13.3]} 34... f5+ {[%clk 0:02:58.8]} 35. Ke3 {[%clk 0:03:12.7]} 35... Kd5
{[%clk 0:02:55.9]} 36. Rc8 {[%clk 0:03:10.1]} 36... Rc6 {[%clk 0:02:48.3]} 37.
Rd8+ {[%clk 0:02:58]} 37... Kc4 {[%clk 0:02:30.2]} 38. Rd4+ {[%clk 0:02:53.4]}
38... Kb3 {[%clk 0:02:29.3]} 39. f3 {[%clk 0:02:47.3]} 39... Rc3+ {[%clk
0:02:22.8]} 40. Ke2 {[%clk 0:02:46.1]} 40... Rc4 {[%clk 0:02:19.4]} 41. Rd6
{[%clk 0:02:45.6]} 41... Rxf4 {[%clk 0:02:14.5]} 42. Rxb6+ {[%clk 0:02:39.8]}
42... Kxa4 {[%clk 0:02:13.1]} 43. Rxg6 {[%clk 0:02:39.7]} 43... Rxh4 {[%clk
0:02:10.5]} 44. Rf6 {[%clk 0:02:38.4]} 44... f4 {[%clk 0:02:04.4]} 45. Kd3
{[%clk 0:02:37.9]} 45... Ka3 {[%clk 0:02:02.9]} 46. Kc3 {[%clk 0:02:35.2]} 46...
a4 {[%clk 0:02:01.7]} 47. Rf8 {[%clk 0:02:29.8]} 47... h5 {[%clk 0:01:58.1]} 48.
Rf5 {[%clk 0:02:28.2]} 48... Ka2 {[%clk 0:01:53.6]} 49. Ra5 {[%clk 0:02:25.4]}
49... a3 {[%clk 0:01:49.5]} 50. Kb4 {[%clk 0:02:24.2]} 50... Rh3 {[%clk
0:01:47.8]} 51. Rxa3+ {[%clk 0:02:23.1]} 51... Kb2 {[%clk 0:01:46.7]} 52. Rd3
{[%clk 0:02:18.6]} 52... Kc2 {[%clk 0:01:41.8]} 53. Kc4 {[%clk 0:02:18]} 53...
Rg3 {[%clk 0:01:38.9]} 54. Kd4 {[%clk 0:02:14.4]} 54... h4 {[%clk 0:01:34.7]}
55. Ke4 {[%clk 0:02:06]} 55... h3 {[%clk 0:01:32.8]} 56. Ra3 {[%clk 0:01:44.1]}
56... Rg2 {[%clk 0:01:22]} 57. Ra8 {[%clk 0:01:40.1]} 57... h2 {[%clk
0:01:20.1]} 58. Rh8 {[%clk 0:01:39.6]} 58... Kd2 {[%clk 0:01:17.8]} 59. Kxf4
{[%clk 0:01:38.4]} 59... Ke2 {[%clk 0:01:16.7]} 60. Ke4 {[%clk 0:01:37.3]} 60...
Kf2 {[%clk 0:01:14.9]} 61. f4 {[%clk 0:01:36.7]} 61... Kg1 {[%clk 0:01:11.9]}
62. f5 {[%clk 0:01:35.9]} 62... h1=Q {[%clk 0:01:10]} 63. Rxh1+ {[%clk 0:01:35]}
63... Kxh1 {[%clk 0:01:09.4]} 64. f6 {[%clk 0:01:34.7]} 64... Kh2 {[%clk
0:01:03.6]} 65. Ke5 {[%clk 0:01:33.8]} 65... Kh3 {[%clk 0:01:02.6]} 66. f7
{[%clk 0:01:32.9]} 66... Rf2 {[%clk 0:01:01.7]} 67. Ke6 {[%clk 0:01:31.8]} 67...
Kg4 {[%clk 0:00:59.3]} 68. Ke7 {[%clk 0:01:30.2]} 68... Re2+ {[%clk 0:00:58.3]}
69. Kd7 {[%clk 0:01:29.4]} 69... Rf2 {[%clk 0:00:56.6]} 70. Ke7 {[%clk
0:01:28.7]} 70... Re2+ {[%clk 0:00:55.5]} 71. Kd7 {[%clk 0:01:28]} 71... Rf2
{[%clk 0:00:53.6]} 72. Ke7 {[%clk 0:01:26.6]} 1/2-1/2